bitfinex/quotes_BTCUSD_20241201
["timestamp","ask_amount","ask_price","bid_price","bid_amount"]
[1733018914085,0.0047268,96297.0,96296.0,0.21531509]
[1733018914326,0.0017268,96297.0,96296.0,0.34221509]
[1733018914548,0.0017268,96297.0,96296.0,0.34037721]
[1733018914764,0.0027268,96297.0,96296.0,0.34037721]
[1733018916805,0.0027268,96297.0,96296.0,0.29297721]
[1733018918135,0.0027268,96297.0,96296.0,0.21347721]
[1733018918347,0.0027268,96297.0,96296.0,0.21531501]
[1733018918556,0.0027268,96297.0,96296.0,0.00578521]
[1733018918765,0.10557201,96297.0,96296.0,0.00578521]
[1733018919228,0.10557201,96297.0,96296.0,0.001]
[1733018919457,0.10557201,96297.0,96293.0,0.207698]
[1733018919704,0.10284521,96296.0,96288.0,0.207708]
[1733018919927,0.10284521,96296.0,96288.0,0.20954604]
[1733018920128,0.10284521,96296.0,96292.0,0.2077]
[1733018920775,0.10284521,96296.0,96293.0,0.001]
[1733018922787,0.10284521,96296.0,96292.0,0.2077]
[1733018923255,0.10584521,96296.0,96292.0,0.001]
[1733018923673,0.10584521,96296.0,96289.0,0.13949537]
[1733018923897,0.10584521,96296.0,96289.0,0.34720337]
[1733018924118,0.10684521,96296.0,96289.0,0.207708]
[1733018924369,0.10684521,96296.0,96289.0,0.34720337]
[1733018924542,0.10584521,96296.0,96289.0,0.34720337]
[1733018924753,0.10284521,96296.0,96289.0,0.34720337]
[1733018924961,0.10384521,96296.0,96289.0,0.34720337]
[1733018925182,0.10684521,96296.0,96289.0,0.207708]
[1733018925395,0.10684521,96296.0,96288.0,0.01088693]
[1733018925396,0.10384521,96296.0,96288.0,0.01088693]
[1733018925639,0.10684521,96296.0,96288.0,0.00183804]
[1733018925858,0.10684521,96296.0,96289.0,0.207708]
[1733018926066,0.10684521,96296.0,96288.0,0.00183804]
[1733018926288,0.10584521,96296.0,96289.0,0.207708]
[1733018926495,0.10284521,96296.0,96289.0,0.207708]
[1733018926708,0.10384521,96296.0,96289.0,0.207708]
[1733018926930,0.10684521,96296.0,96289.0,0.207708]
[1733018927149,0.10584521,96296.0,96289.0,0.207708]
[1733018927370,0.10684521,96296.0,96289.0,0.207708]
[1733018927809,0.10684521,96296.0,96293.0,0.415396]
[1733018928027,0.10684521,96296.0,96293.0,0.207698]
[1733018928673,0.10384521,96296.0,96293.0,0.415396]
[1733018928884,0.001,96296.0,96293.0,0.415396]
[1733018929094,0.001,96296.0,96295.0,0.207695]
[1733018929318,0.004,96296.0,96295.0,0.207695]
[1733018929572,0.001,96296.0,96295.0,0.207695]
[1733018929810,0.0017268,96297.0,96295.0,0.207695]
[1733018930024,0.003,96296.0,96295.0,0.207695]
[1733018930443,0.001,96296.0,96295.0,0.207695]
[1733018930652,0.004,96296.0,96295.0,0.207695]
[1733018930867,0.003,96296.0,96295.0,0.207695]
[1733018931309,0.004,96296.0,96295.0,0.207695]
[1733018931935,0.004,96296.0,96295.0,0.21900116]
[1733018932370,0.004,96296.0,96295.0,0.29830116]
[1733018933021,0.004,96296.0,96295.0,0.43800954]
[1733018933492,0.001,96296.0,96295.0,0.29830116]
[1733018933668,0.0017268,96297.0,96295.0,0.29830116]
[1733018934036,0.0017268,96297.0,96296.0,0.00183778]
[1733018934705,0.0017268,96297.0,96296.0,0.00734297]
[1733018934918,0.0017268,96297.0,96296.0,0.24019028]
[1733018935147,0.0017268,96297.0,96296.0,0.2383525]
[1733018935378,0.0017268,96297.0,96296.0,0.00550519]
[1733018935501,0.0017268,96297.0,96296.0,0.00734297]
[1733018935935,0.0017268,96297.0,96296.0,0.2402958]
[1733018936147,0.0017268,96297.0,96296.0,0.23845902]
[1733018936353,0.0047268,96297.0,96296.0,0.23845902]
[1733018936561,0.0047268,96297.0,96296.0,0.00750519]
[1733018936562,0.0017268,96297.0,96296.0,0.00750519]
[1733018936765,0.0017268,96297.0,96296.0,0.00934297]
[1733018937266,0.0017268,96297.0,96296.0,0.00734297]
[1733018937413,0.0017268,96297.0,96296.0,0.01134297]
[1733018937824,0.0017268,96297.0,96296.0,0.00934297]
[1733018940019,0.0017268,96297.0,96296.0,0.00734297]
[1733018940240,0.0017268,96297.0,96296.0,0.00834297]
[1733018940681,0.0017268,96297.0,96296.0,0.00734297]
[1733018941106,0.0017268,96297.0,96296.0,0.00834297]
[1733018942275,0.0017268,96297.0,96296.0,0.28592196]
[1733018942503,0.0017268,96297.0,96296.0,0.00650519]
[1733018942746,0.0017268,96297.0,96296.0,0.00834283]
[1733018943191,0.0017268,96297.0,96296.0,0.00934283]
[1733018943422,0.0017268,96297.0,96296.0,0.00734283]
[1733018943659,0.0017268,96297.0,96296.0,0.00834283]
[1733018943935,0.0017268,96297.0,96296.0,0.00850519]
[1733018944198,0.0017268,96297.0,96296.0,0.28938827]
[1733018944415,0.0017268,96297.0,96296.0,0.28955777]
[1733018944684,0.0017268,96297.0,96296.0,0.00950519]
[1733018944946,0.0017268,96297.0,96296.0,0.00750519]
[1733018945334,0.0017268,96297.0,96296.0,0.00550519]
[1733018945564,0.0037268,96297.0,96296.0,0.00750519]
[1733018945783,0.0017268,96297.0,96296.0,0.00750519]
[1733018946224,0.0017268,96297.0,96296.0,0.00850519]
[1733018946695,0.15237201,96297.0,96296.0,0.00850519]
[1733018946912,0.23277201,96297.0,96296.0,0.19522444]
[1733018947134,0.23277201,96297.0,96296.0,0.00650519]
[1733018947570,0.23277201,96297.0,96296.0,0.00750519]
[1733018948051,0.23277201,96297.0,96296.0,0.00650519]
[1733018948291,0.23377201,96297.0,96296.0,0.00550519]
[1733018948522,0.23377201,96297.0,96292.0,0.14004292]
[1733018948523,0.23577201,96297.0,96292.0,0.14004292]
[1733018948761,0.10284521,96296.0,96291.0,0.14004292]
[1733018949475,0.10284521,96296.0,96292.0,0.00549922]
[1733018949909,0.10284521,96296.0,96291.0,0.14004292]
[1733018950163,0.10284521,96296.0,96293.0,0.00549833]
[1733018950394,0.10284521,96296.0,96292.0,0.14554214]
[1733018950637,0.10284521,96296.0,96293.0,0.00549833]
[1733018950862,0.10284521,96296.0,96289.0,0.14002929]
[1733018950863,0.207695,96295.0,96289.0,0.14002929]
[1733018951091,0.207699,96293.0,96289.0,0.14002929]
[1733018951305,0.10284521,96292.0,96288.0,0.14002929]
[1733018951521,0.207703,96291.0,96288.0,0.14002929]
[1733018951742,0.207708,96289.0,96288.0,0.14002929]
[1733018951960,0.207712,96287.0,96282.0,0.00088747]
[1733018952194,0.415432,96285.0,96282.0,0.00088747]
[1733018952444,0.20772,96283.0,96282.0,0.00088747]
[1733018952721,0.31239859,96283.0,96282.0,0.00088747]
[1733018952937,0.31056521,96283.0,96282.0,0.00088747]
[1733018953848,0.31056521,96283.0,96282.0,0.00288747]
[1733018954271,0.31056521,96283.0,96282.0,0.00188747]
[1733018954703,0.31256521,96283.0,96282.0,0.00188747]
[1733018954923,0.31256521,96283.0,96282.0,0.00088747]
[1733018955401,0.31756521,96283.0,96282.0,0.00088747]
[1733018957767,0.44576521,96283.0,96282.0,0.00088747]
[1733018957980,0.45709428,96283.0,96282.0,0.00088747]
[1733018959087,0.45209428,96283.0,96282.0,0.00088747]
[1733018959526,0.45909428,96283.0,96282.0,0.00088747]
[1733018959745,0.45609428,96283.0,96282.0,0.00188747]
[1733018960173,0.46509428,96283.0,96282.0,0.00188747]
[1733018960424,0.45995758,96283.0,96282.0,0.00088747]
[1733018960667,0.46695758,96283.0,96282.0,0.00188747]
[1733018963869,0.45995758,96283.0,96282.0,0.00088747]
[1733018964085,0.45995758,96283.0,96282.0,0.00188747]
[1733018964304,0.46695758,96283.0,96282.0,0.00188747]
[1733018964729,0.45795758,96283.0,96282.0,0.00188747]
[1733018965610,0.46695758,96283.0,96282.0,0.00188747]
[1733018971657,0.32742851,96283.0,96282.0,0.00188747]
[1733018974702,0.11970851,96283.0,96282.0,0.00188747]
[1733018974935,0.11970851,96283.0,96282.0,0.001]
[1733018975367,0.11970851,96283.0,96282.0,0.00653554]
[1733018975698,0.10370851,96283.0,96282.0,0.00553554]
[1733018976007,0.11370851,96283.0,96282.0,0.00553554]
[1733018976438,0.11070851,96283.0,96282.0,0.00553554]
[1733018977135,0.0008633,96283.0,96282.0,0.13423554]
[1733018977366,0.0028633,96283.0,96282.0,0.13423554]
[1733018977605,0.0088633,96283.0,96282.0,0.13607372]
[1733018978355,0.0028633,96283.0,96282.0,0.13607372]
[1733018978592,0.0028633,96283.0,96282.0,0.13696119]
[1733018978812,0.0048633,96283.0,96282.0,0.13696119]
[1733018979038,0.0028633,96283.0,96282.0,0.13696119]
[1733018979281,0.0008633,96283.0,96282.0,0.13696119]
[1733018979763,0.0038633,96283.0,96282.0,0.13696119]
[1733018980253,0.0008633,96283.0,96282.0,0.13696119]
[1733018980692,0.0008633,96283.0,96282.0,0.13796119]
[1733018981565,0.0008633,96283.0,96282.0,0.13612301]
[1733018982496,0.0008633,96283.0,96282.0,0.08752301]
[1733018982724,0.0008633,96283.0,96282.0,0.08952301]
[1733018982973,0.0008633,96283.0,96282.0,0.00842301]
[1733018983252,0.0008633,96283.0,96282.0,0.00642301]
[1733018983716,0.0008633,96283.0,96282.0,0.00742301]
[1733018984174,0.0008633,96283.0,96282.0,0.00642301]
[1733018984904,0.0028633,96283.0,96282.0,0.00742301]
[1733018985618,0.0008633,96283.0,96282.0,0.00742301]
[1733018986546,0.0008633,96283.0,96282.0,0.00642301]
[1733018986815,0.0018633,96283.0,96282.0,0.00642301]
[1733018987042,0.0048633,96283.0,96282.0,0.00642301]
[1733018987283,0.0008633,96283.0,96282.0,0.00642301]
[1733018987514,0.0028633,96283.0,96282.0,0.00642301]
[1733018987769,0.0068633,96283.0,96282.0,0.00642301]
[1733018988013,0.0048633,96283.0,96282.0,0.00642301]
[1733018988259,0.0078633,96283.0,96282.0,0.00642301]
[1733018988514,0.0048633,96283.0,96282.0,0.00642301]
[1733018989432,0.0088633,96283.0,96282.0,0.00642301]
[1733018989573,0.0078633,96283.0,96282.0,0.00642301]
[1733018990002,0.0098633,96283.0,96282.0,0.00642301]
[1733018990435,0.0078633,96283.0,96282.0,0.00642301]
[1733018990636,0.0008633,96283.0,96282.0,0.00642301]
[1733018990865,0.0048633,96283.0,96282.0,0.00642301]
[1733018991507,0.0008633,96283.0,96282.0,0.00642301]
[1733018991758,0.0048633,96283.0,96282.0,0.00642301]
[1733018991974,0.0018633,96283.0,96282.0,0.00642301]
[1733018992211,0.0048633,96283.0,96282.0,0.00642301]
[1733018992673,0.0018633,96283.0,96282.0,0.00642301]
[1733018992911,0.0008633,96283.0,96282.0,0.00642301]
[1733018993408,0.0018633,96283.0,96282.0,0.00642301]
[1733018994002,0.0048633,96283.0,96282.0,0.00642301]
[1733018994228,0.0008633,96283.0,96282.0,0.00642301]
[1733018994629,0.0048633,96283.0,96282.0,0.00642301]
[1733018994880,0.0018633,96283.0,96282.0,0.00642301]
[1733018995083,0.0048633,96283.0,96282.0,0.00642301]
[1733018995445,0.0018633,96283.0,96282.0,0.00642301]
[1733018995671,0.0048633,96283.0,96282.0,0.00642301]
[1733018995885,0.0038633,96283.0,96282.0,0.00642301]
[1733018996351,0.0048633,96283.0,96282.0,0.00642301]
[1733018997220,0.0038633,96283.0,96282.0,0.00642301]
[1733018997435,0.0008633,96283.0,96282.0,0.00642301]
[1733018997863,0.0038633,96283.0,96282.0,0.00642301]
[1733018998099,0.0048633,96283.0,96282.0,0.00642301]
[1733018998561,0.0018633,96283.0,96282.0,0.00642301]
[1733018999063,0.0038633,96283.0,96282.0,0.00642301]
[1733018999288,0.0028633,96283.0,96282.0,0.00642301]
[1733019000153,0.0008633,96283.0,96282.0,0.00642301]
[1733019000591,0.0038633,96283.0,96282.0,0.00642301]
[1733019000805,0.10370851,96283.0,96282.0,0.00642301]
[1733019001019,0.10554189,96283.0,96282.0,0.00642301]
[1733019001232,0.10570851,96283.0,96282.0,0.00088747]
[1733019001442,0.10370851,96283.0,96282.0,0.00088747]
[1733019001644,0.10370851,96283.0,96282.0,0.00641102]
[1733019001863,0.10770851,96283.0,96282.0,0.00641102]
[1733019002075,0.10370851,96283.0,96282.0,0.00641102]
[1733019002527,0.0008633,96283.0,96282.0,0.08401102]
[1733019002736,0.0018633,96283.0,96282.0,0.08401102]
[1733019002950,0.0018633,96283.0,96282.0,0.08584916]
[1733019003176,0.0008633,96283.0,96282.0,0.08584916]
[1733019003625,0.0008633,96283.0,96282.0,0.00641102]
[1733019003626,0.0058633,96283.0,96282.0,0.00641102]
[1733019003839,0.0018633,96283.0,96282.0,0.00641102]
[1733019004061,0.0038633,96283.0,96282.0,0.00641102]
[1733019004275,0.0048633,96283.0,96282.0,0.00641102]
[1733019004466,0.0018633,96283.0,96282.0,0.00641102]
[1733019004675,0.0048633,96283.0,96282.0,0.00641102]
[1733019004903,0.0018633,96283.0,96282.0,0.00641102]
[1733019005533,0.0008633,96283.0,96282.0,0.00641102]
[1733019005963,0.0048633,96283.0,96282.0,0.00641102]
[1733019006575,0.0038633,96283.0,96282.0,0.00641102]
[1733019006804,0.0048633,96283.0,96282.0,0.00641102]
[1733019008164,0.0018633,96283.0,96282.0,0.00641102]
[1733019008384,0.0018633,96283.0,96282.0,0.14621578]
[1733019008615,0.0038633,96283.0,96282.0,0.14621578]
[1733019008772,0.0038633,96283.0,96282.0,0.00641102]
[1733019009002,0.0048633,96283.0,96282.0,0.00641102]
[1733019009361,0.0048633,96283.0,96282.0,0.14621578]
[1733019009794,0.0048633,96283.0,96282.0,0.00641102]
[1733019010022,0.10770851,96283.0,96282.0,0.00641102]
[1733019011356,0.10470851,96283.0,96282.0,0.00641102]
[1733019011866,0.10554189,96283.0,96282.0,0.00641102]
[1733019012296,0.10854189,96283.0,96282.0,0.00088747]
[1733019013406,0.10554189,96283.0,96282.0,0.00088747]
[1733019014299,0.10754189,96283.0,96282.0,0.00641172]
[1733019014522,0.10754189,96283.0,96282.0,0.00088747]
[1733019014773,0.10554189,96283.0,96282.0,0.00088747]
[1733019014987,0.10854189,96283.0,96282.0,0.00088747]
[1733019015212,0.10554189,96283.0,96282.0,0.00088747]
[1733019015435,0.10370851,96283.0,96282.0,0.00088747]
[1733019015645,0.10470851,96283.0,96282.0,0.00641172]
[1733019015879,0.10470851,96283.0,96282.0,0.00088747]
[1733019016098,0.10470851,96283.0,96282.0,0.00641172]
[1733019016326,0.10370851,96283.0,96282.0,0.00088747]
[1733019016776,0.11070851,96283.0,96282.0,0.00088747]
[1733019016991,0.11070851,96283.0,96282.0,0.00641172]
[1733019019618,0.11254189,96283.0,96282.0,0.00641172]
[1733019020830,0.24324189,96283.0,96282.0,0.00641172]
[1733019021049,0.24140851,96283.0,96282.0,0.00641172]
[1733019021519,0.24140851,96283.0,96282.0,0.00088747]
[1733019022427,0.23940851,96283.0,96282.0,0.00088747]
[1733019022883,0.24440851,96283.0,96282.0,0.00088747]
[1733019023120,0.39440851,96283.0,96282.0,0.00088747]
[1733019023359,0.38940851,96283.0,96282.0,0.00088747]
[1733019023596,0.39540851,96283.0,96282.0,0.00088747]
[1733019024080,0.38440851,96283.0,96282.0,0.00088747]
[1733019024572,0.40040851,96283.0,96282.0,0.00088747]
[1733019024808,0.39140851,96283.0,96282.0,0.00088747]
[1733019025308,0.40040851,96283.0,96282.0,0.00088747]
[1733019026203,0.41973845,96283.0,96282.0,0.00088747]
[1733019027350,0.28903845,96283.0,96282.0,0.00088747]
[1733019027603,0.33483845,96283.0,96282.0,0.00088747]
[1733019029463,0.41063845,96283.0,96282.0,0.00088747]
[1733019032796,0.41062049,96283.0,96282.0,0.00088747]
[1733019033034,0.39130851,96283.0,96282.0,0.00088747]
[1733019033257,0.41061997,96283.0,96282.0,0.00088747]
[1733019036507,0.41062295,96283.0,96282.0,0.00088747]
[1733019037464,0.41062295,96283.0,96253.0,0.13984845]
[1733019037465,0.22475192,96283.0,96253.0,0.13984845]
[1733019037717,0.548,96291.0,96253.0,0.13984845]
[1733019037931,0.4124,96299.0,96253.0,0.13984845]
[1733019038153,0.62368061,97896.0,96253.0,0.13984845]
[1733019038372,0.232,96302.0,96251.0,0.13984845]
[1733019038613,0.05136084,96371.0,96251.0,0.13984845]
[1733019038876,0.3,96237.0,96236.0,0.16665841]
[1733019039125,0.3,96284.0,96251.0,0.00017898]
[1733019039356,0.10284521,96252.0,96220.0,0.01]
[1733019039609,0.10284521,96252.0,96200.0,3.05484634]
[1733019039610,0.10284521,96248.0,96236.0,0.0468]
[1733019039842,0.023,96273.0,96260.0,0.01]
[1733019040088,0.15,96305.0,96261.0,0.0757]
[1733019040354,0.00137361,96300.0,96291.0,0.08164092]
[1733019040599,0.01,96315.0,96314.0,0.01]
[1733019040816,0.03219007,96315.0,96292.0,0.00544252]
[1733019041048,0.01,96312.0,96311.0,0.09320736]
[1733019041311,0.04218813,96312.0,96307.0,0.00960736]
[1733019041548,0.01109605,96333.0,96271.0,0.0002]
[1733019041549,0.01,96285.0,96271.0,0.0002]
[1733019041814,0.207619,96330.0,96280.0,0.35024791]
[1733019042039,0.207619,96330.0,96286.0,0.01]
[1733019042040,0.01,96287.0,96286.0,0.01]
[1733019042283,0.01,96288.0,96269.0,0.01]
[1733019042523,0.25,96384.0,96325.0,0.01]
[1733019042812,0.25,96384.0,96227.0,0.05168988]
[1733019042813,0.207762,96264.0,96227.0,0.05168988]
[1733019043047,0.08164092,96330.0,96200.0,3.34484634]
[1733019043048,0.01,96378.0,96209.0,0.207879]
[1733019043281,0.207544,96365.0,96291.0,0.002]
[1733019043510,0.207544,96365.0,96244.0,0.01112657]
[1733019043511,0.01,96348.0,96244.0,0.2595]
[1733019043768,0.01,96348.0,96231.0,0.0002]
[1733019043769,0.00989614,96249.0,96231.0,0.0002]
[1733019044012,0.00989614,96248.0,96231.0,0.0002]
[1733019044285,0.207611,96334.0,96231.0,0.0002]
[1733019044286,0.207617,96332.0,96287.0,0.1248]
[1733019044564,0.01,96373.0,96287.0,0.1248]
[1733019044565,0.01,96383.0,96294.0,0.207697]
[1733019044797,0.01625169,96372.0,96303.0,0.01]
[1733019045050,0.009,96348.0,96326.0,0.01]
[1733019045285,0.009,96348.0,96346.0,0.1248]
[1733019045555,0.03218166,96347.0,96300.0,0.2793403]
[1733019045823,0.009,96348.0,96315.0,0.2793403]
[1733019046074,0.0777,96347.0,96331.0,0.23277112]
[1733019046345,0.01,96440.0,96349.0,0.0781]
[1733019046616,0.009,96383.0,96334.0,0.01]
[1733019046858,0.12439068,96350.0,96327.0,0.01]
[1733019047117,0.31,96337.0,96336.0,0.18623584]
[1733019047350,0.207463,96403.0,96375.0,0.01]
[1733019047591,0.00183825,96402.0,96388.0,0.01]
[1733019047821,0.0467,96370.0,96362.0,0.1859673]
[1733019048048,0.01,96365.0,96364.0,0.07367175]
[1733019048264,0.01,96365.0,96274.0,0.0781]
[1733019048265,0.207613,96333.0,96327.0,0.001]
[1733019048537,0.00017904,96347.0,96327.0,0.001]
[1733019048538,0.207617,96331.0,96327.0,0.001]
[1733019048764,0.01,96437.0,96342.0,0.1248]
[1733019048997,0.01,96464.0,96327.0,0.001]
[1733019048998,0.14460296,96408.0,96365.0,0.01]
[1733019049241,0.03213696,96407.0,96344.0,0.32561976]
[1733019049496,0.20748,96395.0,96354.0,0.207567]
[1733019049730,0.20748,96395.0,96331.0,0.01]
[1733019049731,2.823305,96394.0,96347.0,0.01]
[1733019049986,0.009,96370.0,96362.0,0.001]
[1733019050491,0.01021398,96402.0,96401.0,0.01]
[1733019050760,0.01021398,96402.0,96386.0,0.01]
[1733019051012,0.01021398,96402.0,96379.0,0.00091411]
[1733019051013,0.002,96395.0,96394.0,0.01]
[1733019051298,0.0002,96429.0,96408.0,0.01]
[1733019051299,0.0777,96416.0,96408.0,0.01]
[1733019051542,0.0002,96429.0,96396.0,0.0781]
[1733019051543,0.00335921,96409.0,96396.0,0.0781]
[1733019051782,0.0010633,96409.0,96405.0,0.01]
[1733019052031,0.0010633,96409.0,96408.0,0.01]
[1733019052032,0.0110633,96409.0,96408.0,0.01]
[1733019052271,0.01,96407.0,96406.0,0.09267429]
[1733019052502,0.0010633,96409.0,96401.0,0.001]
[1733019052773,0.0010633,96409.0,96391.0,0.09269852]
[1733019053031,0.0010633,96409.0,96392.0,0.00091562]
[1733019053269,0.0010633,96409.0,96402.0,0.09269852]
[1733019053270,0.207455,96407.0,96402.0,0.09269852]
[1733019053501,0.207455,96407.0,96358.0,0.41189637]
[1733019053502,0.548,96488.0,96406.0,0.27891976]
[1733019053765,0.2502,96489.0,96468.0,0.01]
[1733019053766,0.0002,96489.0,96468.0,0.01]
[1733019053991,0.0002,96489.0,96462.0,0.00183439]
[1733019054217,0.207306,96476.0,96447.0,0.09240461]
[1733019054464,0.00144015,96483.0,96468.0,0.01]
[1733019054465,0.00138015,96475.0,96468.0,0.01]
[1733019054713,6e-05,96483.0,96468.0,0.00183427]
[1733019054714,0.5228376,96469.0,96468.0,0.00183427]
[1733019054977,6e-05,96483.0,96482.0,0.01]
[1733019055212,0.00144015,96483.0,96468.0,0.23070195]
[1733019055437,6e-05,96483.0,96482.0,0.00449967]
[1733019055691,6e-05,96483.0,96482.0,0.01]
[1733019055941,6e-05,96483.0,96482.0,0.00449967]
[1733019056154,6e-05,96483.0,96482.0,0.02749967]
[1733019056425,6e-05,96483.0,96482.0,0.20815643]
[1733019056657,6e-05,96483.0,96482.0,0.2116698]
[1733019056881,6e-05,96483.0,96482.0,0.20267046]
[1733019057114,0.01006,96483.0,96482.0,0.20267046]
[1733019057350,0.01144015,96483.0,96482.0,0.14877293]
[1733019057629,0.01203711,96483.0,96482.0,0.03335613]
[1733019057866,0.01203711,96483.0,96468.0,0.002268]
[1733019057867,0.36732,96469.0,96468.0,0.002268]
[1733019058099,0.36732,96469.0,96456.0,0.27601192]
[1733019058100,0.01,96457.0,96456.0,0.27601192]
[1733019058320,0.01,96442.0,96441.0,0.13802888]
[1733019058582,0.01,96442.0,96377.0,0.01]
[1733019058583,0.15,96418.0,96410.0,0.40763533]
[1733019058814,0.00138015,96417.0,96400.0,0.40763533]
[1733019059029,0.207457,96406.0,96403.0,0.40763533]
[1733019059259,0.207472,96399.0,96384.0,0.31085146]
[1733019059485,0.00138015,96404.0,96399.0,0.01]
[1733019059721,0.01,96433.0,96413.0,0.01]
[1733019059962,0.00138015,96432.0,96418.0,0.01]
[1733019060204,0.15,96434.0,96429.0,0.01]
[1733019060453,0.15,96434.0,96386.0,0.207497]
[1733019060454,0.207348,96456.0,96440.0,0.01]
[1733019060701,0.230352,96483.0,96448.0,0.01]
[1733019060702,0.00138015,96455.0,96448.0,0.01]
[1733019060937,0.00138015,96468.0,96462.0,0.01]
[1733019061170,0.023,96469.0,96468.0,0.01]
[1733019061415,0.02306,96483.0,96482.0,0.01]
[1733019061853,0.02365696,96483.0,96482.0,0.01]
[1733019062314,0.02365696,96483.0,96482.0,0.01183433]
[1733019062804,0.207271,96492.0,96479.0,0.01]
[1733019063036,0.00017909,96492.0,96490.0,0.40553235]
[1733019063253,0.207281,96487.0,96482.0,0.023]
[1733019063504,0.00996,96483.0,96482.0,0.023]
[1733019063954,0.01196,96483.0,96482.0,0.035]
[1733019064208,0.001,96483.0,96482.0,0.03]
[1733019064417,0.207286,96485.0,96482.0,0.023]
[1733019064640,0.207273,96491.0,96482.0,0.023]
[1733019064641,0.15,96484.0,96482.0,0.023]
[1733019064860,0.00017909,96492.0,96489.0,0.01]
[1733019065077,0.00017909,96492.0,96483.0,0.01428044]
[1733019065346,0.207275,96490.0,96488.0,0.13696642]
[1733019065588,0.00996,96487.0,96482.0,0.023]
[1733019065800,0.00996,96483.0,96482.0,0.023]
[1733019066043,0.207329,96465.0,96464.0,0.09132091]
[1733019066265,0.207329,96465.0,96445.0,0.01]
[1733019066266,0.207361,96451.0,96446.0,0.09132091]
[1733019066494,0.0008626,96436.0,96435.0,0.22832512]
[1733019066710,0.0008626,96436.0,96434.0,0.18262561]
[1733019066929,0.207393,96435.0,96433.0,0.18262561]
[1733019067149,0.207417,96424.0,96423.0,0.27400284]
[1733019067386,0.207423,96422.0,96420.0,0.27400284]
[1733019067622,0.20733338,96419.0,96415.0,0.01]
[1733019067878,0.20733338,96419.0,96402.0,0.40446477]
[1733019067879,0.20733338,96419.0,96417.0,0.27392589]
[1733019068099,0.00996,96415.0,96414.0,0.27392589]
[1733019068320,0.00996,96407.0,96400.0,0.27392589]
[1733019068540,0.00996,96400.0,96394.0,0.27392589]
[1733019068758,0.207468,96401.0,96395.0,0.27392589]
[1733019068980,0.207467,96401.0,96396.0,0.40446477]
[1733019069208,0.023,96431.0,96400.0,0.01]
[1733019069432,0.023,96431.0,96419.0,0.01]
[1733019069665,0.023,96431.0,96423.0,0.01]
[1733019069906,0.023,96431.0,96427.0,0.01]
[1733019070138,0.0008626,96436.0,96425.0,0.01]
[1733019070359,0.0008626,96436.0,96412.0,0.01]
[1733019070591,0.0008626,96436.0,96433.0,0.01]
[1733019070821,0.207393,96435.0,96433.0,0.01]
[1733019071037,0.207393,96435.0,96431.0,0.27375918]
[1733019071263,0.207393,96435.0,96434.0,0.00482806]
[1733019071495,0.414787,96435.0,96434.0,0.13783698]
[1733019071775,0.564787,96435.0,96434.0,0.00582336]
[1733019071999,0.00104139,96436.0,96434.0,0.00582336]
[1733019072220,0.00104139,96436.0,96435.0,0.01]
[1733019072677,0.207311,96474.0,96441.0,0.01]
[1733019072899,0.207378,96442.0,96441.0,0.01]
[1733019073118,0.414757,96442.0,96438.0,0.01]
[1733019073344,0.414757,96442.0,96417.0,0.27375918]
[1733019073345,0.207393,96435.0,96432.0,0.1368343]
[1733019073567,0.00996,96456.0,96434.0,0.00059696]
[1733019073785,0.01623623,96474.0,96434.0,0.00059696]
[1733019073786,0.207387,96438.0,96434.0,0.00059696]
[1733019074001,0.15,96435.0,96434.0,0.00059696]
[1733019074731,0.207391,96436.0,96434.0,0.00059696]
[1733019074957,0.207379,96442.0,96434.0,0.00059696]
[1733019074958,0.207379,96442.0,96438.0,0.01]
[1733019075191,0.548,96508.0,96447.0,0.01]
[1733019075416,0.00996,96475.0,96453.0,0.01]
[1733019075649,0.207311,96473.0,96444.0,0.01]
[1733019075889,0.207365,96448.0,96445.0,0.01]
[1733019076119,0.207361,96450.0,96443.0,0.01]
[1733019076333,0.207361,96450.0,96442.0,0.01]
[1733019076554,0.414724,96450.0,96442.0,0.0109828]
[1733019076788,0.00996,96475.0,96442.0,0.0109828]
[1733019076789,0.15996,96475.0,96442.0,0.0109828]
[1733019077003,0.20738,96442.0,96439.0,0.01]
[1733019077222,0.207331,96464.0,96441.0,0.01]
[1733019077223,0.15,96463.0,96441.0,0.01]
[1733019077444,0.002,96474.0,96454.0,0.01]
[1733019077674,0.02619463,96486.0,96434.0,0.00059696]
[1733019077675,0.207331,96464.0,96458.0,0.01]
[1733019078196,0.414663,96464.0,96458.0,0.01]
[1733019078426,0.207304,96477.0,96471.0,0.01]
[1733019078660,0.207304,96477.0,96470.0,0.01]
[1733019078661,0.414608,96477.0,96470.0,0.01]
[1733019078895,0.414608,96477.0,96433.0,0.207397]
[1733019078896,0.207344,96458.0,96457.0,0.01]
[1733019079121,0.207337,96461.0,96457.0,0.01]
[1733019079582,0.207355,96453.0,96441.0,0.01]
[1733019079802,0.207373,96445.0,96442.0,0.01]
[1733019080246,0.207349,96456.0,96450.0,0.01]
[1733019080491,0.001,96463.0,96454.0,0.01]
[1733019080492,0.207335,96462.0,96454.0,0.01]
[1733019080704,0.207324,96468.0,96464.0,0.01]
[1733019080949,0.001,96477.0,96465.0,0.01]
[1733019080950,0.357326,96466.0,96465.0,0.01]
[1733019081169,0.005,96477.0,96476.0,0.01]
[1733019081388,0.20729,96483.0,96476.0,0.01]
[1733019081606,0.20729,96483.0,96476.0,0.01580994]
[1733019081826,0.00996,96507.0,96476.0,0.0109992]
[1733019082043,0.01623059,96511.0,96476.0,0.0109992]
[1733019082044,0.207298,96480.0,96476.0,0.0009992]
[1733019082265,0.207298,96480.0,96471.0,0.01]
[1733019082493,0.207298,96480.0,96464.0,0.001]
[1733019082494,0.20728,96488.0,96486.0,0.00890468]
[1733019082742,0.20728,96488.0,96464.0,0.001]
[1733019082743,0.00041338,96499.0,96495.0,0.00890468]
[1733019082967,0.03200544,96498.0,96495.0,0.00890468]
[1733019083439,0.00041338,96499.0,96498.0,0.00890468]
[1733019083665,0.03246351,96499.0,96498.0,0.00890468]
[1733019083880,0.00041338,96499.0,96498.0,0.00890468]
[1733019084104,0.00041338,96499.0,96498.0,0.01305686]
[1733019084791,0.00041338,96499.0,96498.0,0.00415218]
[1733019085002,0.20726,96497.0,96486.0,0.00890468]
[1733019085219,0.207265,96495.0,96491.0,0.00890468]
[1733019085478,0.207281,96487.0,96486.0,0.00890468]